[Event "Live Chess"]
[Site "Chess.com"]
[Date "2023.05.21"]
[Round "-"]
[White "smoggyrabbit"]
[Black "Ian-Morley"]
[Result "1-0"]
[WhiteElo "1708"]
[BlackElo "1074"]
[TimeControl "300"]
[EndTime "2:04:17 PDT"]
[Termination "smoggyrabbit won by checkmate"]

1. d4 {[%clk 0:04:58.4]} 1... e5 {[%clk 0:04:59.2]} 2. dxe5 {[%clk 0:04:55.9]}
2... Nc6 {[%clk 0:04:57.6]} 3. Nf3 {[%clk 0:04:55.1]} 3... Qe7 {[%clk
0:04:56.8]} 4. Nc3 {[%clk 0:04:50.7]} 4... Nxe5 {[%clk 0:04:52.5]} 5. e4 {[%clk
0:04:49.5]} 5... Nxf3+ {[%clk 0:04:51.5]} 6. Qxf3 {[%clk 0:04:48.2]} 6... Qf6
{[%clk 0:04:50.6]} 7. Qxf6 {[%clk 0:04:05]} 7... Nxf6 {[%clk 0:04:49.3]} 8. Bc4
{[%clk 0:04:00.1]} 8... Bb4 {[%clk 0:04:47.6]} 9. O-O {[%clk 0:03:25.1]} 9...
Bxc3 {[%clk 0:04:45.7]} 10. bxc3 {[%clk 0:03:24.3]} 10... Nxe4 {[%clk
0:04:45.2]} 11. Re1 {[%clk 0:03:23.4]} 11... f5 {[%clk 0:04:43.2]} 12. f3 {[%clk
0:03:22.1]} 12... d6 {[%clk 0:04:37.2]} 13. fxe4 {[%clk 0:03:20.5]} 13... fxe4
{[%clk 0:04:36.5]} 14. Rxe4+ {[%clk 0:03:17.7]} 14... Kd7 {[%clk 0:04:35.8]} 15.
Bg5 {[%clk 0:03:06.1]} 15... c6 {[%clk 0:04:32.1]} 16. Rae1 {[%clk 0:03:02.9]}
16... Kc7 {[%clk 0:04:30.7]} 17. Re7+ {[%clk 0:02:55.3]} 17... Kb6 {[%clk
0:04:28.2]} 18. Be3+ {[%clk 0:02:35.1]} 18... c5 {[%clk 0:04:25.6]} 19. Bf4
{[%clk 0:02:22.1]} 19... Bg4 {[%clk 0:03:57.5]} 20. Rb1+ {[%clk 0:01:58.3]}
20... Ka5 {[%clk 0:03:54.4]} 21. Rexb7 {[%clk 0:01:46.2]} 21... a6 {[%clk
0:03:52.2]} 22. Bxd6 {[%clk 0:01:38.6]} 22... Bc8 {[%clk 0:03:50.1]} 23. R7b3
{[%clk 0:00:42.9]} 23... Bd7 {[%clk 0:03:37.7]} 24. Bxc5 {[%clk 0:00:38.7]}
24... Rhe8 {[%clk 0:03:30.5]} 25. Bb6+ {[%clk 0:00:36.2]} 25... Ka4 {[%clk
0:03:28.3]} 26. Rb4+ {[%clk 0:00:25.8]} 26... Ka3 {[%clk 0:03:24.8]} 27. R1b3+
{[%clk 0:00:23.8]} 27... Kxa2 {[%clk 0:03:23.5]} 28. Rb1+ {[%clk 0:00:21]} 28...
Ka3 {[%clk 0:02:53.1]} 29. Ra1# {[%clk 0:00:20.9]} 1-0

[Event "Live Chess"]
[Site "Chess.com"]
[Date "2023.05.21"]
[Round "-"]
[White "ms_lilley"]
[Black "MaximKris"]
[Result "1/2-1/2"]
[WhiteElo "606"]
[BlackElo "1802"]
[TimeControl "300"]
[EndTime "2:04:22 PDT"]
[Termination "Game drawn - insufficient material"]

1. d4 {[%clk 0:04:57.8]} 1... d5 {[%clk 0:04:58.3]} 2. e3 {[%clk 0:04:56.6]}
2... Nf6 {[%clk 0:04:54.2]} 3. h3 {[%clk 0:04:55.1]} 3... Bf5 {[%clk 0:04:53.2]}
4. Nf3 {[%clk 0:04:53.3]} 4... e6 {[%clk 0:04:51.9]} 5. Bd3 {[%clk 0:04:50.6]}
5... Bxd3 {[%clk 0:04:50.6]} 6. Qxd3 {[%clk 0:04:47.9]} 6... Bd6 {[%clk
0:04:50.5]} 7. O-O {[%clk 0:04:44.4]} 7... O-O {[%clk 0:04:49]} 8. Nbd2 {[%clk
0:04:38.4]} 8... Nc6 {[%clk 0:04:48.1]} 9. a3 {[%clk 0:04:36]} 9... e5 {[%clk
0:04:45.8]} 10. Nxe5 {[%clk 0:04:32.1]} 10... Nxe5 {[%clk 0:04:44.1]} 11. dxe5
{[%clk 0:04:24.6]} 11... Bxe5 {[%clk 0:04:44]} 12. Nf3 {[%clk 0:04:16.5]} 12...
Re8 {[%clk 0:04:40.5]} 13. Nd4 {[%clk 0:04:01.2]} 13... Bxd4 {[%clk 0:04:26.7]}
14. Qxd4 {[%clk 0:03:59]} 14... Re4 {[%clk 0:04:22.4]} 15. Qc5 {[%clk
0:03:46.4]} 15... Qd6 {[%clk 0:04:18.3]} 16. b4 {[%clk 0:03:32.9]} 16... Qxc5
{[%clk 0:04:16]} 17. bxc5 {[%clk 0:03:31.3]} 17... Rc4 {[%clk 0:04:14.5]} 18. a4
{[%clk 0:03:14.6]} 18... Rxc5 {[%clk 0:04:11.5]} 19. Ra2 {[%clk 0:03:09.6]}
19... Ne4 {[%clk 0:04:10.6]} 20. Ba3 {[%clk 0:02:56.5]} 20... Rc3 {[%clk
0:04:07.7]} 21. Be7 {[%clk 0:02:42.8]} 21... Re8 {[%clk 0:04:04.4]} 22. Bh4
{[%clk 0:02:35.6]} 22... g5 {[%clk 0:04:01.5]} 23. Bg3 {[%clk 0:02:29.3]} 23...
Nxg3 {[%clk 0:03:59.9]} 24. fxg3 {[%clk 0:02:26.9]} 24... Rcxe3 {[%clk
0:03:58.6]} 25. g4 {[%clk 0:02:21.2]} 25... Rc3 {[%clk 0:03:53.9]} 26. Rf2
{[%clk 0:02:16.5]} 26... Re1+ {[%clk 0:03:50.9]} 27. Kh2 {[%clk 0:02:12.9]}
27... Re4 {[%clk 0:03:44.8]} 28. Ra1 {[%clk 0:02:09.7]} 28... Rec4 {[%clk
0:03:05.1]} 29. Rf5 {[%clk 0:02:06.1]} 29... Rxc2 {[%clk 0:03:01.3]} 30. Rxg5+
{[%clk 0:02:03.8]} 30... Kf8 {[%clk 0:02:53.2]} 31. Rf1 {[%clk 0:01:51.8]} 31...
Rxa4 {[%clk 0:02:47.7]} 32. Rgf5 {[%clk 0:01:50]} 32... Raa2 {[%clk 0:02:41.7]}
33. Rxf7+ {[%clk 0:01:47.9]} 33... Ke8 {[%clk 0:02:37.9]} 34. Kg3 {[%clk
0:01:43.6]} 34... Rxg2+ {[%clk 0:02:33.4]} 35. Kh4 {[%clk 0:01:41.8]} 35... d4
{[%clk 0:02:30.8]} 36. Kg5 {[%clk 0:01:37.9]} 36... Ra5+ {[%clk 0:02:27.3]} 37.
Kh6 {[%clk 0:01:30.9]} 37... Rh2 {[%clk 0:02:24.5]} 38. Kg7 {[%clk 0:01:20.3]}
38... Re5 {[%clk 0:01:54]} 39. Rxc7 {[%clk 0:01:12.4]} 39... Re7+ {[%clk
0:01:48.7]} 40. Rxe7+ {[%clk 0:01:09.2]} 40... Kxe7 {[%clk 0:01:48.6]} 41. Rf7+
{[%clk 0:01:06.6]} 41... Kd6 {[%clk 0:01:47.2]} 42. Rxb7 {[%clk 0:01:03]} 42...
Ke5 {[%clk 0:01:44.9]} 43. Rxa7 {[%clk 0:00:56.2]} 43... d3 {[%clk 0:01:43.9]}
44. Rd7 {[%clk 0:00:54.1]} 44... Ke4 {[%clk 0:01:43.1]} 45. Kxh7 {[%clk
0:00:51.2]} 45... Ke3 {[%clk 0:01:42.1]} 46. g5 {[%clk 0:00:44.9]} 46... Rxh3+
{[%clk 0:01:41.4]} 47. Kg6 {[%clk 0:00:42.9]} 47... d2 {[%clk 0:01:36]} 48. Rxd2
{[%clk 0:00:40.6]} 48... Kxd2 {[%clk 0:01:35.9]} 49. Kf5 {[%clk 0:00:38.8]}
49... Rf3+ {[%clk 0:01:34]} 50. Kg4 {[%clk 0:00:37.1]} 50... Rf8 {[%clk
0:01:33]} 51. g6 {[%clk 0:00:35.9]} 51... Ke3 {[%clk 0:01:32.4]} 52. Kg5 {[%clk
0:00:35]} 52... Ke4 {[%clk 0:01:31.2]} 53. Kh6 {[%clk 0:00:31.8]} 53... Rf6
{[%clk 0:01:14.6]} 54. Kg5 {[%clk 0:00:30]} 54... Rf8 {[%clk 0:01:09.5]} 55. g7
{[%clk 0:00:27.5]} 55... Rb8 {[%clk 0:01:06.5]} 56. Kf6 {[%clk 0:00:25.3]} 56...
Kd5 {[%clk 0:01:04.2]} 57. Kf7 {[%clk 0:00:19.7]} 57... Kd6 {[%clk 0:01:02.3]}
58. g8=Q {[%clk 0:00:17.6]} 58... Rxg8 {[%clk 0:01:01.5]} 59. Kxg8 {[%clk
0:00:16.4]} 1/2-1/2

[Event "Live Chess"]
[Site "Chess.com"]
[Date "2023.05.21"]
[Round "-"]
[White "chessfiction"]
[Black "Biranidun"]
[Result "0-1"]
[WhiteElo "2330"]
[BlackElo "2551"]
[TimeControl "300"]
[EndTime "2:04:29 PDT"]
[Termination "Biranidun won by resignation"]

1. e4 {[%clk 0:04:58.5]} 1... c5 {[%clk 0:04:59.1]} 2. Nf3 {[%clk 0:04:57.1]}
2... d6 {[%clk 0:04:58.8]} 3. d4 {[%clk 0:04:56.6]} 3... cxd4 {[%clk 0:04:58.7]}
4. Nxd4 {[%clk 0:04:56.3]} 4... Nf6 {[%clk 0:04:58.5]} 5. Nc3 {[%clk 0:04:55.9]}
5... g6 {[%clk 0:04:58.2]} 6. f4 {[%clk 0:04:55.5]} 6... Nc6 {[%clk 0:04:56.5]}
7. Bb5 {[%clk 0:04:54.3]} 7... Bd7 {[%clk 0:04:54.9]} 8. O-O {[%clk 0:04:52.8]}
8... Bg7 {[%clk 0:04:53.3]} 9. Bxc6 {[%clk 0:04:52.2]} 9... bxc6 {[%clk
0:04:52.3]} 10. e5 {[%clk 0:04:51.8]} 10... Nd5 {[%clk 0:04:45.1]} 11. Nxd5
{[%clk 0:04:46.2]} 11... cxd5 {[%clk 0:04:44.7]} 12. exd6 {[%clk 0:04:37.7]}
12... Qb6 {[%clk 0:04:43.6]} 13. c3 {[%clk 0:04:35.4]} 13... Qxd6 {[%clk
0:04:42.7]} 14. Qe2 {[%clk 0:04:29]} 14... O-O {[%clk 0:04:40.1]} 15. f5 {[%clk
0:04:10.6]} 15... e5 {[%clk 0:04:31.9]} 16. Nc2 {[%clk 0:03:58.9]} 16... Bxf5
{[%clk 0:04:30]} 17. Ne3 {[%clk 0:03:50.1]} 17... Be6 {[%clk 0:04:28]} 18. b3
{[%clk 0:03:46.3]} 18... f5 {[%clk 0:04:25.4]} 19. Bb2 {[%clk 0:03:45.3]} 19...
f4 {[%clk 0:04:05.6]} 20. Ng4 {[%clk 0:03:40]} 20... h5 {[%clk 0:04:02.1]} 21.
Nf2 {[%clk 0:03:39]} 21... e4 {[%clk 0:04:00.6]} 22. Rad1 {[%clk 0:03:37.8]}
22... Qc5 {[%clk 0:03:52.6]} 23. c4 {[%clk 0:03:28.4]} 23... Bg4 {[%clk
0:03:47]} 24. Rxd5 {[%clk 0:03:11.1]} 24... Bxe2 {[%clk 0:03:42.6]} 25. Rxc5
{[%clk 0:03:08.6]} 25... Bxb2 {[%clk 0:03:40.8]} 26. Re1 {[%clk 0:03:06.2]}
26... f3 {[%clk 0:03:36]} 27. Nxe4 {[%clk 0:03:03.9]} 27... Bd4+ {[%clk
0:03:34.1]} 0-1

[Event "Live Chess"]
[Site "Chess.com"]
[Date "2023.05.21"]
[Round "-"]
[White "LiamBellwood"]
[Black "WombatIn_A_Box"]
[Result "1-0"]
[WhiteElo "1980"]
[BlackElo "533"]
[TimeControl "300"]
[EndTime "2:04:37 PDT"]
[Termination "LiamBellwood won by checkmate"]

1. d3 {[%clk 0:04:59.2]} 1... e5 {[%clk 0:04:55.7]} 2. c4 {[%clk 0:04:59.1]}
2... Nf6 {[%clk 0:04:53.6]} 3. Nc3 {[%clk 0:04:59]} 3... d5 {[%clk 0:04:52.8]}
4. cxd5 {[%clk 0:04:56.9]} 4... Nxd5 {[%clk 0:04:51.6]} 5. Nf3 {[%clk
0:04:56.5]} 5... Nxc3 {[%clk 0:04:50.1]} 6. bxc3 {[%clk 0:04:54.4]} 6... Bd6
{[%clk 0:04:44.6]} 7. e4 {[%clk 0:04:48.4]} 7... O-O {[%clk 0:04:42.9]} 8. Be2
{[%clk 0:04:47.3]} 8... Re8 {[%clk 0:04:42]} 9. O-O {[%clk 0:04:46.9]} 9... Qe7
{[%clk 0:04:41.3]} 10. a4 {[%clk 0:04:45.4]} 10... Bg4 {[%clk 0:04:40]} 11. Nd2
{[%clk 0:04:35]} 11... Bxe2 {[%clk 0:04:37.2]} 12. Qxe2 {[%clk 0:04:34.9]} 12...
c5 {[%clk 0:04:34.7]} 13. Nc4 {[%clk 0:04:33.8]} 13... Bc7 {[%clk 0:04:32.1]}
14. Ne3 {[%clk 0:04:32.8]} 14... Bb6 {[%clk 0:04:28.4]} 15. Nd5 {[%clk
0:04:31.8]} 15... Qd6 {[%clk 0:04:24.8]} 16. f4 {[%clk 0:04:25.1]} 16... Qg6
{[%clk 0:04:23.6]} 17. f5 {[%clk 0:04:22.7]} 17... Qg5 {[%clk 0:04:22.1]} 18.
Bxg5 {[%clk 0:04:21.3]} 18... f6 {[%clk 0:04:20.8]} 19. Bxf6 {[%clk 0:04:14.9]}
19... gxf6 {[%clk 0:04:19.4]} 20. Nxf6+ {[%clk 0:04:14.8]} 20... Kf7 {[%clk
0:04:17.2]} 21. Nxe8 {[%clk 0:04:14.7]} 21... Kxe8 {[%clk 0:04:16.8]} 22. Qh5+
{[%clk 0:04:14.6]} 22... Kd7 {[%clk 0:04:14.4]} 23. Qxh7+ {[%clk 0:04:13.7]}
23... Kc8 {[%clk 0:04:12.4]} 24. f6 {[%clk 0:04:13.6]} 24... Nd7 {[%clk
0:04:10.8]} 25. f7 {[%clk 0:04:12.5]} 25... Bd8 {[%clk 0:04:07.4]} 26. f8=Q
{[%clk 0:04:10.8]} 26... Nxf8 {[%clk 0:04:06.4]} 27. Rxf8 {[%clk 0:04:10.7]}
27... b6 {[%clk 0:04:02]} 28. Qe7 {[%clk 0:04:09.6]} 28... Kb8 {[%clk
0:03:56.8]} 29. Rxd8# {[%clk 0:04:09.5]} 1-0

[Event "Live Chess"]
[Site "Chess.com"]
[Date "2023.05.21"]
[Round "-"]
[White "domrobson"]
[Black "HoarseyHorsey"]
[Result "1-0"]
[WhiteElo "1734"]
[BlackElo "1446"]
[TimeControl "300"]
[EndTime "2:05:01 PDT"]
[Termination "domrobson won by resignation"]

1. d4 {[%clk 0:04:59.7]} 1... Nf6 {[%clk 0:04:58.6]} 2. c4 {[%clk 0:04:59.1]}
2... e6 {[%clk 0:04:57.4]} 3. Nf3 {[%clk 0:04:58]} 3... d5 {[%clk 0:04:57]} 4.
Nc3 {[%clk 0:04:57.3]} 4... Bb4 {[%clk 0:04:56.1]} 5. Bg5 {[%clk 0:04:56.4]}
5... O-O {[%clk 0:04:53.9]} 6. e3 {[%clk 0:04:55.9]} 6... h6 {[%clk 0:04:52.9]}
7. Bh4 {[%clk 0:04:54.5]} 7... Nbd7 {[%clk 0:04:51.8]} 8. Rc1 {[%clk 0:04:53.6]}
8... c5 {[%clk 0:04:50.1]} 9. dxc5 {[%clk 0:04:49.3]} 9... Bxc5 {[%clk
0:04:49.3]} 10. cxd5 {[%clk 0:04:47.5]} 10... exd5 {[%clk 0:04:42.2]} 11. Nxd5
{[%clk 0:04:45.3]} 11... Bb4+ {[%clk 0:04:41]} 12. Nxb4 {[%clk 0:04:44]} 12...
Qa5 {[%clk 0:04:38.9]} 13. a3 {[%clk 0:04:39.4]} 13... Ne4 {[%clk 0:04:34.1]}
14. Bd3 {[%clk 0:04:35.3]} 14... Ndf6 {[%clk 0:04:33.1]} 15. O-O {[%clk
0:04:33.5]} 15... Bg4 {[%clk 0:04:30.9]} 16. Qc2 {[%clk 0:04:27.5]} 16... Bxf3
{[%clk 0:04:22.1]} 17. gxf3 {[%clk 0:04:25.7]} 17... Ng5 {[%clk 0:04:20]} 18. f4
{[%clk 0:04:22.9]} 18... Nf3+ {[%clk 0:04:16.8]} 19. Kh1 {[%clk 0:04:20.4]}
19... Nxh4 {[%clk 0:04:15.6]} 20. Qc5 {[%clk 0:04:15.6]} 20... Qxc5 {[%clk
0:03:54.8]} 21. Rxc5 {[%clk 0:04:14.2]} 21... Rac8 {[%clk 0:03:51.1]} 22. Rfc1
{[%clk 0:04:12.4]} 22... Rxc5 {[%clk 0:03:49.9]} 23. Rxc5 {[%clk 0:04:11.3]}
23... b6 {[%clk 0:03:46.6]} 24. Rc7 {[%clk 0:04:09.9]} 24... a5 {[%clk
0:03:45.5]} 25. Nc6 {[%clk 0:04:06.5]} 25... Re8 {[%clk 0:03:36.6]} 26. Bb5
{[%clk 0:04:02.2]} 26... Re6 {[%clk 0:03:17.9]} 27. Rc8+ {[%clk 0:03:47]} 27...
Kh7 {[%clk 0:03:16.3]} 28. Bd3+ {[%clk 0:03:45.2]} 28... g6 {[%clk 0:03:15.2]}
29. Rc7 {[%clk 0:03:38]} 29... Kg7 {[%clk 0:03:01.5]} 30. Ne5 {[%clk 0:03:32.6]}
30... Ne8 {[%clk 0:02:38.7]} 31. Rxf7+ {[%clk 0:03:29.8]} 31... Kg8 {[%clk
0:02:35.8]} 32. Rd7 {[%clk 0:03:23.2]} 32... Nf6 {[%clk 0:02:20.4]} 33. Bc4
{[%clk 0:03:20.2]} 33... Nxd7 {[%clk 0:02:14.6]} 34. Bxe6+ {[%clk 0:03:18]}
34... Kf8 {[%clk 0:02:13.2]} 35. Bxd7 {[%clk 0:03:16.3]} 1-0

[Event "Live Chess"]
[Site "Chess.com"]
[Date "2023.05.21"]
[Round "-"]
[White "ExIsambard"]
[Black "EdenHazard8"]
[Result "0-1"]
[WhiteElo "1900"]
[BlackElo "1978"]
[TimeControl "300"]
[EndTime "2:05:05 PDT"]
[Termination "EdenHazard8 won on time"]

1. d4 {[%clk 0:04:57.8]} 1... e5 {[%clk 0:04:59.5]} 2. dxe5 {[%clk 0:04:53.3]}
2... Nc6 {[%clk 0:04:59.1]} 3. Nf3 {[%clk 0:04:52.1]} 3... Qe7 {[%clk
0:04:56.5]} 4. e6 {[%clk 0:04:50.7]} 4... dxe6 {[%clk 0:04:51.5]} 5. Nc3 {[%clk
0:04:43.5]} 5... Nf6 {[%clk 0:04:50.3]} 6. e4 {[%clk 0:04:42]} 6... e5 {[%clk
0:04:48.6]} 7. Bd3 {[%clk 0:04:34.3]} 7... Bg4 {[%clk 0:04:47.1]} 8. h3 {[%clk
0:04:29.8]} 8... Be6 {[%clk 0:04:43.7]} 9. O-O {[%clk 0:04:28.4]} 9... O-O-O
{[%clk 0:04:41.2]} 10. Be3 {[%clk 0:04:24.7]} 10... Nd4 {[%clk 0:04:39.5]} 11.
Bxd4 {[%clk 0:04:18.7]} 11... exd4 {[%clk 0:04:39.4]} 12. Nb5 {[%clk 0:04:05.3]}
12... Qc5 {[%clk 0:04:36.7]} 13. a4 {[%clk 0:04:03.2]} 13... a6 {[%clk
0:04:34.5]} 14. Na3 {[%clk 0:04:00.1]} 14... Nd7 {[%clk 0:04:30.3]} 15. Qd2
{[%clk 0:03:52.8]} 15... Bd6 {[%clk 0:04:27.6]} 16. Rfe1 {[%clk 0:03:48.7]}
16... Ne5 {[%clk 0:04:25.7]} 17. Nxe5 {[%clk 0:01:49.6]} 17... Qxe5 {[%clk
0:04:25.6]} 18. g3 {[%clk 0:01:46.2]} 18... Bxh3 {[%clk 0:04:23.5]} 19. Nc4
{[%clk 0:01:38.9]} 19... Qh5 {[%clk 0:04:21.7]} 20. e5 {[%clk 0:01:20.5]} 20...
Bg4 {[%clk 0:04:08.5]} 21. Be4 {[%clk 0:01:16.1]} 21... Bc5 {[%clk 0:04:00.3]}
22. b4 {[%clk 0:01:13]} 22... Ba7 {[%clk 0:03:58.7]} 23. b5 {[%clk 0:00:49.5]}
23... Qh3 {[%clk 0:03:51.9]} 24. b6 {[%clk 0:00:40.2]} 24... Bxb6 {[%clk
0:03:47.4]} 25. Nxb6+ {[%clk 0:00:38.1]} 25... cxb6 {[%clk 0:03:47.3]} 26. Qf4
{[%clk 0:00:32.3]} 26... Kb8 {[%clk 0:03:43.3]} 27. e6+ {[%clk 0:00:25.4]} 27...
Ka7 {[%clk 0:03:41]} 28. e7 {[%clk 0:00:17.3]} 28... Rd7 {[%clk 0:03:36.7]} 29.
a5 {[%clk 0:00:10.8]} 29... b5 {[%clk 0:03:33.5]} 30. Qe5 {[%clk 0:00:08.2]}
30... Re8 {[%clk 0:03:25.7]} 31. Qc5+ {[%clk 0:00:07]} 31... Ka8 {[%clk
0:03:23.8]} 32. Bg2 {[%clk 0:00:01.5]} 32... Qh6 {[%clk 0:03:20.7]} 33. Re5
{[%clk 0:00:00.4]} 33... Qd6 {[%clk 0:03:19.3]} 0-1

[Event "Live Chess"]
[Site "Chess.com"]
[Date "2023.05.21"]
[Round "-"]
[White "OleksiyJr1"]
[Black "chekagain"]
[Result "0-1"]
[WhiteElo "965"]
[BlackElo "841"]
[TimeControl "300"]
[EndTime "2:05:17 PDT"]
[Termination "chekagain won by checkmate"]

1. e4 {[%clk 0:04:58.5]} 1... Nf6 {[%clk 0:04:56.8]} 2. e5 {[%clk 0:04:57]} 2...
Nd5 {[%clk 0:04:55.9]} 3. c4 {[%clk 0:04:54.6]} 3... Nb6 {[%clk 0:04:52.2]} 4.
Nc3 {[%clk 0:04:30]} 4... d5 {[%clk 0:04:47.6]} 5. exd6 {[%clk 0:04:26.6]} 5...
cxd6 {[%clk 0:04:44]} 6. d4 {[%clk 0:04:22.2]} 6... d5 {[%clk 0:04:42.4]} 7. c5
{[%clk 0:04:20.6]} 7... Nc4 {[%clk 0:04:32.5]} 8. Nf3 {[%clk 0:04:14.4]} 8...
Bg4 {[%clk 0:04:25]} 9. h3 {[%clk 0:04:10.4]} 9... Bxf3 {[%clk 0:04:19.3]} 10.
Qxf3 {[%clk 0:04:10.3]} 10... e6 {[%clk 0:04:08.7]} 11. Bxc4 {[%clk 0:04:08.3]}
11... dxc4 {[%clk 0:04:07.3]} 12. Qxb7 {[%clk 0:04:06.9]} 12... Nd7 {[%clk
0:04:06.2]} 13. Qf3 {[%clk 0:04:02.5]} 13... Rc8 {[%clk 0:04:03.8]} 14. O-O
{[%clk 0:03:56.7]} 14... Be7 {[%clk 0:04:00.3]} 15. b4 {[%clk 0:03:49.6]} 15...
cxb3 {[%clk 0:03:57.7]} 16. axb3 {[%clk 0:03:47.6]} 16... O-O {[%clk 0:03:53.9]}
17. Rxa7 {[%clk 0:03:42.9]} 17... Nxc5 {[%clk 0:03:38.3]} 18. dxc5 {[%clk
0:03:39.5]} 18... Bxc5 {[%clk 0:03:38.2]} 19. Ba3 {[%clk 0:03:27]} 19... Bxa7
{[%clk 0:03:35.4]} 20. Bxf8 {[%clk 0:03:22.8]} 20... Kxf8 {[%clk 0:03:35.3]} 21.
Rd1 {[%clk 0:03:19.2]} 21... Qc7 {[%clk 0:03:00.9]} 22. Nb5 {[%clk 0:03:13.2]}
22... Qb8 {[%clk 0:02:35.1]} 23. Nxa7 {[%clk 0:03:02.4]} 23... Qxa7 {[%clk
0:02:32.7]} 24. Rb1 {[%clk 0:02:55.8]} 24... Qa2 {[%clk 0:02:25.5]} 25. Qd1
{[%clk 0:02:37.3]} 25... Qa7 {[%clk 0:01:36.7]} 26. b4 {[%clk 0:02:32.8]} 26...
e5 {[%clk 0:01:29.1]} 27. b5 {[%clk 0:02:31.9]} 27... Qd4 {[%clk 0:01:20.3]} 28.
b6 {[%clk 0:02:09]} 28... Qxd1+ {[%clk 0:01:15.8]} 29. Rxd1 {[%clk 0:02:06.8]}
29... Rb8 {[%clk 0:01:12.5]} 30. Rb1 {[%clk 0:02:06.2]} 30... Ke7 {[%clk
0:01:10.7]} 31. Kf1 {[%clk 0:02:05.1]} 31... Kd7 {[%clk 0:01:09.7]} 32. Ke2
{[%clk 0:02:03.7]} 32... Kc6 {[%clk 0:01:08.5]} 33. Ke3 {[%clk 0:02:02.8]} 33...
Rxb6 {[%clk 0:01:05.8]} 34. Rxb6+ {[%clk 0:02:02.3]} 34... Kxb6 {[%clk
0:01:05.7]} 35. Ke4 {[%clk 0:02:01.9]} 35... f6 {[%clk 0:01:04.9]} 36. g4 {[%clk
0:01:59.3]} 36... Kc6 {[%clk 0:01:01.7]} 37. Kf5 {[%clk 0:01:56.5]} 37... Kd6
{[%clk 0:00:57.5]} 38. h4 {[%clk 0:01:54.2]} 38... Ke7 {[%clk 0:00:55.1]} 39. h5
{[%clk 0:01:53.4]} 39... Kf7 {[%clk 0:00:53.8]} 40. f3 {[%clk 0:01:50.1]} 40...
g6+ {[%clk 0:00:52.6]} 41. hxg6+ {[%clk 0:01:48.9]} 41... hxg6+ {[%clk
0:00:51.8]} 42. Ke4 {[%clk 0:01:48.4]} 42... Ke6 {[%clk 0:00:50.2]} 43. Ke3
{[%clk 0:01:46.2]} 43... f5 {[%clk 0:00:49.6]} 44. g5 {[%clk 0:01:44.8]} 44...
Kd5 {[%clk 0:00:43.2]} 45. Kd3 {[%clk 0:01:42]} 45... e4+ {[%clk 0:00:41.7]} 46.
fxe4+ {[%clk 0:01:41.1]} 46... fxe4+ {[%clk 0:00:41.5]} 47. Ke3 {[%clk
0:01:40.7]} 47... Ke5 {[%clk 0:00:40.3]} 48. Ke2 {[%clk 0:01:38.5]} 48... Kf4
{[%clk 0:00:38.8]} 49. Kd2 {[%clk 0:01:37.5]} 49... Kf3 {[%clk 0:00:37.4]} 50.
Ke1 {[%clk 0:01:36.3]} 50... e3 {[%clk 0:00:36.6]} 51. Kf1 {[%clk 0:01:35.7]}
51... Ke4 {[%clk 0:00:31.3]} 52. Ke2 {[%clk 0:01:34.4]} 52... Kd4 {[%clk
0:00:30]} 53. Kf3 {[%clk 0:01:33.3]} 53... Kd3 {[%clk 0:00:28]} 54. Kf4 {[%clk
0:01:32.2]} 54... e2 {[%clk 0:00:26.6]} 55. Ke5 {[%clk 0:01:32.1]} 55... e1=Q+
{[%clk 0:00:25.4]} 56. Kf6 {[%clk 0:01:32]} 56... Qe4 {[%clk 0:00:21.9]} 57. Kf7
{[%clk 0:01:27.4]} 57... Qe5 {[%clk 0:00:19.3]} 58. Kxg6 {[%clk 0:01:26.2]}
58... Kd4 {[%clk 0:00:18.6]} 59. Kh6 {[%clk 0:01:25.3]} 59... Kd5 {[%clk
0:00:17.2]} 60. g6 {[%clk 0:01:24.9]} 60... Qe8 {[%clk 0:00:15.8]} 61. g7 {[%clk
0:01:24.3]} 61... Qg8 {[%clk 0:00:15.1]} 62. Kg6 {[%clk 0:01:23.4]} 62... Ke6
{[%clk 0:00:14]} 63. Kh6 {[%clk 0:01:22]} 63... Kf6 {[%clk 0:00:13.3]} 64. Kh5
{[%clk 0:01:21.2]} 64... Qxg7 {[%clk 0:00:12.6]} 65. Kh4 {[%clk 0:01:20.3]}
65... Kf5 {[%clk 0:00:11.7]} 66. Kh3 {[%clk 0:01:19.1]} 66... Kf4 {[%clk
0:00:11.2]} 67. Kh2 {[%clk 0:01:18.2]} 67... Kf3 {[%clk 0:00:10.8]} 68. Kh1
{[%clk 0:01:17.6]} 68... Kf2 {[%clk 0:00:10]} 69. Kh2 {[%clk 0:01:16.7]} 69...
Qg2# {[%clk 0:00:09.4]} 0-1

[Event "Live Chess"]
[Site "Chess.com"]
[Date "2023.05.21"]
[Round "-"]
[White "DRS44"]
[Black "Ferrarifan27"]
[Result "0-1"]
[WhiteElo "1323"]
[BlackElo "2094"]
[TimeControl "300"]
[EndTime "2:05:29 PDT"]
[Termination "Ferrarifan27 won by resignation"]

1. e4 {[%clk 0:04:50.9]} 1... e5 {[%clk 0:04:57.6]} 2. d4 {[%clk 0:04:44.5]}
2... exd4 {[%clk 0:04:55.9]} 3. Qxd4 {[%clk 0:04:40.8]} 3... Nc6 {[%clk
0:04:54.2]} 4. Qe3 {[%clk 0:04:37.3]} 4... Bb4+ {[%clk 0:04:48.1]} 5. Bd2 {[%clk
0:04:30.4]} 5... Bxd2+ {[%clk 0:04:46.5]} 6. Nxd2 {[%clk 0:04:26.5]} 6... d6
{[%clk 0:04:45.9]} 7. O-O-O {[%clk 0:04:21.8]} 7... Nf6 {[%clk 0:04:43.5]} 8. f4
{[%clk 0:04:15.7]} 8... Be6 {[%clk 0:04:38.1]} 9. Kb1 {[%clk 0:04:07.3]} 9...
Qe7 {[%clk 0:04:28.5]} 10. Ngf3 {[%clk 0:03:56.7]} 10... O-O {[%clk 0:04:15.1]}
11. e5 {[%clk 0:03:48.1]} 11... dxe5 {[%clk 0:04:13.3]} 12. fxe5 {[%clk
0:03:44.2]} 12... Ng4 {[%clk 0:04:08.4]} 13. Qf4 {[%clk 0:03:30.9]} 13... Ngxe5
{[%clk 0:04:05.2]} 14. Nxe5 {[%clk 0:03:21.6]} 14... Nxe5 {[%clk 0:04:04.3]} 15.
Qxe5 {[%clk 0:03:14.8]} 15... Bxa2+ {[%clk 0:04:03]} 16. Kxa2 {[%clk 0:02:59.8]}
16... Qxe5 {[%clk 0:04:02.9]} 0-1

[Event "Live Chess"]
[Site "Chess.com"]
[Date "2023.05.21"]
[Round "-"]
[White "Doge_Dandolo"]
[Black "Shepherds_Pie"]
[Result "0-1"]
[WhiteElo "1867"]
[BlackElo "1940"]
[TimeControl "300"]
[EndTime "2:05:31 PDT"]
[Termination "Shepherds_Pie won by resignation"]

1. Nf3 {[%clk 0:04:56.6]} 1... Nf6 {[%clk 0:04:57.2]} 2. c4 {[%clk 0:04:47.4]}
2... c5 {[%clk 0:04:55.6]} 3. g3 {[%clk 0:04:42.8]} 3... d5 {[%clk 0:04:53.7]}
4. cxd5 {[%clk 0:04:41.4]} 4... Nxd5 {[%clk 0:04:52.6]} 5. Bg2 {[%clk
0:04:37.2]} 5... Nc6 {[%clk 0:04:51.3]} 6. d4 {[%clk 0:04:34.5]} 6... e6 {[%clk
0:04:45]} 7. O-O {[%clk 0:04:32.5]} 7... cxd4 {[%clk 0:04:42.3]} 8. Nxd4 {[%clk
0:04:29.2]} 8... Be7 {[%clk 0:04:41.1]} 9. a3 {[%clk 0:04:24.7]} 9... O-O {[%clk
0:04:39.6]} 10. b4 {[%clk 0:04:20.9]} 10... Nxd4 {[%clk 0:04:38]} 11. Qxd4
{[%clk 0:04:17.1]} 11... Bf6 {[%clk 0:04:36.4]} 0-1